fUSD/lending_fUSD_20260620
["ID","MTS","AMOUNT","RATE_DAILY","PERIOD"]
[425827800,1781947840000,-151.00138861,0.00023316,2]
[425827801,1781947840000,-502.0,0.00023429,5]
[425827803,1781947840000,-500.0,0.00023559,2]
[425827812,1781947840000,-549.66429299,0.00024372,7]
[425827804,1781947840000,-150.0,0.00023667,2]
[425827807,1781947840000,-357.0,0.00024,2]
[425827814,1781947840000,-2111.25531862,0.00024634,7]
[425827811,1781947840000,-4389.318794,0.00024344,2]
[425827809,1781947840000,-194.0,0.00024,2]
[425827810,1781947840000,-502.0,0.00024286,6]
[425827806,1781947840000,-270.0,0.00024,2]
[425827805,1781947840000,-249.0,0.00023712,2]
[425827813,1781947840000,-1450.57276573,0.00024372,7]
[425827808,1781947840000,-205.0,0.00024,2]
[425827815,1781947841000,-143.63221029,0.00024634,7]
[425827817,1781947843000,-685.82714746,0.00024634,7]
[425827824,1781947845000,-3498.78532363,0.00024634,7]
[425827825,1781947845000,-196.27,0.00024658,2]
[425827828,1781947845000,-177.66,0.00024658,2]
[425827829,1781947845000,-228.74,0.00024741,2]
[425827827,1781947845000,-177.4,0.00024658,2]
[425827826,1781947845000,-1000.0,0.00024658,2]
[425827823,1781947845000,-222.66,0.0001761,2]
[425827830,1781947845000,-616.57885612,0.00024796,2]
[425827850,1781948880000,-381.93550283,0.00014399,2]
[425827851,1781948933000,-168.41846669,0.00014398,2]
[425827853,1781948987000,-225.12676326,0.00014398,2]
[425827895,1781949041000,-300.0,0.00014397,2]
[425827905,1781949043000,-40.04626456,0.00014399,2]
[425827925,1781949043000,-151.0,0.0001707,2]
[425827923,1781949043000,-151.0,0.00017069,2]
[425827920,1781949043000,-1315.14573095,0.000169,2]
[425827924,1781949043000,-150.0,0.00017069,2]
[425827914,1781949043000,-3956.85880582,0.000164,2]
[425827913,1781949043000,-2645.06483741,0.000164,2]
[425827907,1781949043000,-1499.36911083,0.000144,2]
[425827911,1781949043000,-300.0,0.00015838,2]
[425827906,1781949043000,-568.15465015,0.000144,2]
[425827912,1781949043000,-600.0,0.00015838,2]
[425827908,1781949043000,-250.0,0.00014433,2]
[425827915,1781949043000,-500.0,0.00016438,2]
[425827909,1781949043000,-300.0,0.00014572,2]
[425827917,1781949043000,-1000.0,0.00016899,2]
[425827910,1781949043000,-250.0,0.00015837,2]
[425827916,1781949043000,-500.0,0.00016712,2]
[425827904,1781949043000,-259.95373544,0.00014399,2]
[425827927,1781949043000,-151.0,0.00017071,2]
[425827918,1781949043000,-3339.12103373,0.000169,2]
[425827903,1781949043000,-250.0,0.00014398,2]
[425827921,1781949043000,-500.0,0.00016986,2]
[425827919,1781949043000,-699.49483532,0.000169,2]
[425827944,1781949043000,-502.87462798,0.00017076,2]
[425827942,1781949043000,-8288.08901886,0.00017076,2]
[425827941,1781949043000,-1027.48172099,0.00017076,2]
[425827945,1781949043000,-500.91157275,0.00017076,2]
[425827943,1781949043000,-605.97758395,0.00017076,2]
[425827939,1781949043000,-150.0,0.00017072,2]
[425827934,1781949043000,-662.15139446,0.00017072,2]
[425827928,1781949043000,-151.0,0.00017071,2]
[425827932,1781949043000,-152.0,0.00017071,2]
[425827940,1781949043000,-152.0,0.00017072,2]
[425827936,1781949043000,-150.0,0.00017072,2]
[425827938,1781949043000,-151.0,0.00017072,2]
[425827937,1781949043000,-152.0,0.00017072,2]
[425827931,1781949043000,-151.0,0.00017071,2]
[425827929,1781949043000,-151.0,0.00017071,2]
[425827930,1781949043000,-151.0,0.00017071,2]
[425827935,1781949043000,-151.0,0.00017072,2]
[425827922,1781949043000,-151.0,0.00017069,2]
[425827926,1781949043000,-151.0,0.00017071,2]
[425827933,1781949043000,-257.28215723,0.00017072,2]
[425827950,1781949045000,-1292.529697,0.00017076,2]
[425827949,1781949045000,-335.91036895,0.00017076,2]
[425827948,1781949045000,-161.20242749,0.00016438,2]
[425827947,1781949045000,-390.57603181,0.00016438,2]
[425827951,1781949045000,-2745.32459999,0.00017076,2]
[425827952,1781949045000,-256.73781653,0.00017076,2]
[425827946,1781949045000,-500.0,0.00016438,2]
[425827967,1781949046000,-3889.59597825,0.00017076,2]
[425827962,1781949046000,-1047.92,0.00017076,2]
[425827963,1781949046000,-2584.62480382,0.00017076,2]
[425827975,1781949046000,-151.0,0.00017174,2]
[425827969,1781949046000,-151.0,0.00017173,2]
[425827971,1781949046000,-152.0,0.00017173,2]
[425827973,1781949046000,-43.87537269,0.00017174,2]
[425827974,1781949046000,-107.12462731,0.00017174,2]
[425827976,1781949046000,-152.0,0.00017174,2]
[425827968,1781949046000,-283.29751093,0.00017076,2]
[425827972,1781949046000,-151.0,0.00017173,2]
[425827985,1781949046000,-269.79376495,0.00017176,2]
[425827979,1781949046000,-150.0,0.00017175,2]
[425827980,1781949046000,-151.0,0.00017175,2]
[425827970,1781949046000,-152.0,0.00017173,2]
[425827981,1781949046000,-151.0,0.00017175,2]
[425827984,1781949046000,-153.0,0.00017175,2]
[425827987,1781949046000,-150.0,0.00017176,2]
[425827977,1781949046000,-151.0,0.00017174,2]
[425827986,1781949046000,-151.0,0.00017176,2]
[425827982,1781949046000,-151.0,0.00017175,2]
[425827983,1781949046000,-152.0,0.00017175,2]
[425827978,1781949046000,-151.0,0.00017174,2]
[425827988,1781949047000,-153.0,0.00017176,2]
[425827989,1781949047000,-151.0,0.00017176,2]
[425827991,1781949047000,-150.0,0.00017176,2]
[425827993,1781949047000,-151.0,0.00017176,2]
[425827992,1781949047000,-150.0,0.00017176,2]
[425827994,1781949047000,-395.00862865,0.00017176,2]
[425827990,1781949047000,-151.0,0.00017176,2]
[425827995,1781949047000,-317.0,0.00017177,2]
[425827997,1781949047000,-311.0,0.00017179,2]
[425828000,1781949047000,-167.54347803,0.0001726,2]
[425827998,1781949047000,-311.0,0.00017193,2]
[425827999,1781949047000,-314.0,0.00017193,2]
[425828001,1781949047000,-290.08255869,0.0001726,2]
[425828002,1781949047000,-211.38246093,0.00017261,2]
[425827996,1781949047000,-313.0,0.00017177,2]
[425828003,1781949094000,-500.0,0.00014397,2]
[425828006,1781949148000,-500.0,0.00014397,2]
[425828007,1781949201000,-500.0,0.00014396,2]
[425828008,1781949255000,-500.0,0.00014396,2]
[425828009,1781949308000,-500.0,0.00014396,2]
[425828014,1781949522000,-507.58873429,0.00014395,2]
[425828015,1781949575000,-355.312114,0.00014541,2]
[425828016,1781949635000,-2519.95245416,0.00015,14]
[425828017,1781949635000,-88030.72714655,0.00015,2]
[425828050,1781950232000,-152.0,0.00015048,2]
[425828052,1781950232000,-150.0,0.00015049,2]
[425828051,1781950232000,-150.0,0.00015048,2]
[425828053,1781950232000,-151.0,0.00015053,2]
[425828055,1781950232000,-150.0,0.00015216,2]
[425828060,1781950232000,-150.0,0.00015668,2]
[425828054,1781950232000,-151.0,0.00015067,2]
[425828056,1781950232000,-248.7184798,0.00015288,2]
[425828057,1781950232000,-3072.7941233,0.00015289,2]
[425828058,1781950232000,-150.0,0.00015367,2]
[425828068,1781950232000,-886.07431709,0.00016438,2]
[425828061,1781950232000,-150.0,0.00015819,2]
[425828064,1781950232000,-2710.77340877,0.0001622,2]
[425828063,1781950232000,-254.0,0.0001612,2]
[425828062,1781950232000,-150.0,0.0001597,2]
[425828065,1781950232000,-848.07741484,0.00016319,2]
[425828069,1781950232000,-886.07431709,0.00016438,2]
[425828044,1781950232000,-211.38246093,0.00015048,2]
[425828071,1781950232000,-886.07431709,0.00016438,2]
[425828070,1781950232000,-886.07431709,0.00016438,2]
[425828074,1781950232000,-886.07431709,0.00016438,2]
[425828059,1781950232000,-150.0,0.00015518,2]
[425828046,1781950232000,-153.0,0.00015048,2]
[425828039,1781950232000,-500.0,0.00015047,2]
[425828049,1781950232000,-160.0,0.00015048,2]
[425828075,1781950232000,-886.07431709,0.00016438,2]
[425828025,1781950232000,-500.0,0.00015047,2]
[425828027,1781950232000,-500.0,0.00015047,2]
[425828028,1781950232000,-500.0,0.00015047,2]
[425828026,1781950232000,-500.0,0.00015047,2]
[425828029,1781950232000,-500.0,0.00015047,2]
[425828030,1781950232000,-343.85924228,0.00015047,2]
[425828031,1781950232000,-500.0,0.00015047,2]
[425828033,1781950232000,-500.0,0.00015047,2]
[425828032,1781950232000,-500.0,0.00015047,2]
[425828036,1781950232000,-500.0,0.00015047,2]
[425828034,1781950232000,-500.0,0.00015047,2]
[425828038,1781950232000,-500.0,0.00015047,2]
[425828037,1781950232000,-500.0,0.00015047,2]
[425828035,1781950232000,-500.0,0.00015047,2]
[425828040,1781950232000,-500.0,0.00015047,2]
[425828041,1781950232000,-335.33958179,0.00015047,2]
[425828042,1781950232000,-407.65796554,0.00015047,2]
[425828043,1781950232000,-151.5,0.00015048,2]
[425828045,1781950232000,-151.0,0.00015048,2]
[425828047,1781950232000,-150.0,0.00015048,2]
[425828048,1781950232000,-151.0,0.00015048,2]
[425828072,1781950232000,-886.07431709,0.00016438,2]
[425828067,1781950232000,-886.07431709,0.00016438,2]
[425828066,1781950232000,-244.0,0.00016438,2]
[425828096,1781950232000,-886.07431709,0.00016438,2]
[425828099,1781950232000,-886.07431709,0.00016438,2]
[425828104,1781950232000,-886.07431709,0.00016438,2]
[425828103,1781950232000,-886.07431709,0.00016438,2]
[425828106,1781950232000,-886.07431709,0.00016438,2]
[425828107,1781950232000,-886.07431709,0.00016438,2]
[425828108,1781950232000,-886.07431709,0.00016438,2]
[425828105,1781950232000,-886.07431709,0.00016438,2]
[425828112,1781950232000,-886.07431709,0.00016438,2]
[425828110,1781950232000,-886.07431709,0.00016438,2]
[425828109,1781950232000,-886.07431709,0.00016438,2]
[425828113,1781950232000,-886.07431709,0.00016438,2]
[425828111,1781950232000,-886.07431709,0.00016438,2]
[425828115,1781950232000,-886.07431709,0.00016438,2]
[425828116,1781950232000,-886.07431709,0.00016438,2]
[425828117,1781950232000,-886.07431709,0.00016438,2]
[425828118,1781950232000,-886.07431709,0.00016438,2]
[425828122,1781950232000,-824.74927762,0.00016438,2]
[425828120,1781950232000,-886.07431709,0.00016438,2]
[425828119,1781950232000,-886.07431709,0.00016438,2]
[425828073,1781950232000,-886.07431709,0.00016438,2]
[425828100,1781950232000,-886.07431709,0.00016438,2]
[425828101,1781950232000,-886.07431709,0.00016438,2]
[425828114,1781950232000,-886.07431709,0.00016438,2]
[425828091,1781950232000,-886.07431709,0.00016438,2]
[425828076,1781950232000,-886.07431709,0.00016438,2]
[425828078,1781950232000,-886.07431709,0.00016438,2]
[425828121,1781950232000,-886.07431709,0.00016438,2]
[425828087,1781950232000,-886.07431709,0.00016438,2]
[425828097,1781950232000,-886.07431709,0.00016438,2]
[425828089,1781950232000,-886.07431709,0.00016438,2]
[425828077,1781950232000,-886.07431709,0.00016438,2]
[425828080,1781950232000,-886.07431709,0.00016438,2]
[425828079,1781950232000,-886.07431709,0.00016438,2]
[425828081,1781950232000,-886.07431709,0.00016438,2]
[425828082,1781950232000,-886.07431709,0.00016438,2]
[425828088,1781950232000,-886.07431709,0.00016438,2]
[425828085,1781950232000,-886.07431709,0.00016438,2]
[425828083,1781950232000,-886.07431709,0.00016438,2]
[425828098,1781950232000,-886.07431709,0.00016438,2]
[425828102,1781950232000,-886.07431709,0.00016438,2]
[425828093,1781950232000,-886.07431709,0.00016438,2]
[425828094,1781950232000,-886.07431709,0.00016438,2]
[425828095,1781950232000,-886.07431709,0.00016438,2]
[425828092,1781950232000,-886.07431709,0.00016438,2]
[425828090,1781950232000,-886.07431709,0.00016438,2]
[425828084,1781950232000,-886.07431709,0.00016438,2]
[425828086,1781950232000,-886.07431709,0.00016438,2]
[425828134,1781950233000,-869.96387497,0.00016438,2]
[425828132,1781950233000,-869.96387497,0.00016438,2]
[425828131,1781950233000,-869.96387497,0.00016438,2]
[425828138,1781950233000,-869.96387497,0.00016438,2]
[425828135,1781950233000,-869.96387497,0.00016438,2]
[425828129,1781950233000,-869.96387497,0.00016438,2]
[425828125,1781950233000,-869.96387497,0.00016438,2]
[425828128,1781950233000,-586.6826897,0.00016438,2]
[425828126,1781950233000,-869.96387497,0.00016438,2]
[425828124,1781950233000,-869.96387497,0.00016438,2]
[425828127,1781950233000,-283.28118527,0.00016438,2]
[425828123,1781950233000,-61.32503947,0.00016438,2]
[425828136,1781950233000,-869.96387497,0.00016438,2]
[425828130,1781950233000,-869.96387497,0.00016438,2]
[425828133,1781950233000,-869.96387497,0.00016438,2]
[425828149,1781950233000,-869.96387497,0.00016438,2]
[425828140,1781950233000,-869.96387497,0.00016438,2]
[425828153,1781950233000,-780.27843248,0.00016438,2]
[425828154,1781950233000,-126.1510236,0.00016438,2]
[425828152,1781950233000,-89.68544249,0.00016438,2]
[425828151,1781950233000,-869.96387497,0.00016438,2]
[425828150,1781950233000,-869.96387497,0.00016438,2]
[425828148,1781950233000,-150.61578381,0.00016438,2]
[425828146,1781950233000,-69.61867134,0.00016438,2]
[425828145,1781950233000,-800.34520363,0.00016438,2]
[425828147,1781950233000,-719.34809116,0.00016438,2]
[425828143,1781950233000,-869.96387497,0.00016438,2]
[425828141,1781950233000,-869.96387497,0.00016438,2]
[425828142,1781950233000,-869.96387497,0.00016438,2]
[425828139,1781950233000,-869.96387497,0.00016438,2]
[425828144,1781950233000,-869.96387497,0.00016438,2]
[425828137,1781950233000,-869.96387497,0.00016438,2]
[425828179,1781950240000,-510.11806302,0.00016438,2]
[425828183,1781950243000,-574.30521165,0.00016438,2]
[425828182,1781950243000,-233.69478835,0.00016438,2]
[425828184,1781950244000,-295.65866332,0.00016438,2]
[425828185,1781950244000,-869.96387497,0.00016438,2]
[425828186,1781950244000,-507.83774415,0.00016438,2]
[425828197,1781950246000,-3859.52529127,0.00016778,2]
[425828195,1781950246000,-290.08255869,0.00016438,2]
[425828194,1781950246000,-869.96387512,0.00016438,2]
[425828196,1781950246000,-4519.6484978,0.00016634,2]
[425828192,1781950246000,-869.96387497,0.00016438,2]
[425828193,1781950246000,-869.96387497,0.00016438,2]
[425828191,1781950246000,-362.12613082,0.00016438,2]
[425828262,1781951421000,207.0,9.989e-05,2]
[425828288,1781951432000,-151.0,0.00016402,2]
[425828286,1781951432000,-152.0,0.00016402,2]
[425828287,1781951432000,-150.0,0.00016402,2]
[425828285,1781951432000,-150.0,0.00016401,2]
[425828279,1781951432000,-619.58622617,0.00016398,2]
[425828283,1781951432000,-500.0,0.00016398,2]
[425828281,1781951432000,-500.0,0.00016398,2]
[425828289,1781951432000,-151.0,0.00016402,2]
[425828284,1781951432000,-500.0,0.00016398,2]
[425828292,1781951432000,-152.0,0.00016402,2]
[425828277,1781951432000,-332.62084339,0.00016398,2]
[425828290,1781951432000,-150.0,0.00016402,2]
[425828294,1781951432000,-152.0,0.00016403,2]
[425828296,1781951432000,-151.0,0.00016403,2]
[425828298,1781951432000,-151.0,0.00016403,2]
[425828303,1781951432000,-151.0,0.00016403,2]
[425828300,1781951432000,-150.0,0.00016403,2]
[425828301,1781951432000,-151.0,0.00016403,2]
[425828306,1781951432000,-153.0,0.00016404,2]
[425828305,1781951432000,-152.0,0.00016403,2]
[425828307,1781951432000,-152.0,0.00016404,2]
[425828308,1781951432000,-3876.68096072,0.00016406,2]
[425828291,1781951432000,-151.0,0.00016402,2]
[425828589,1781951446000,-500.0,0.00016398,2]
[425828591,1781951446000,-2332.56612549,0.00016406,2]
[425828593,1781951446000,-651.95918143,0.00016406,2]
[425828592,1781951446000,-1022.34102219,0.00016406,2]
[425828594,1781951446000,-1430.03843661,0.00016406,2]
[425828590,1781951446000,-207.52750946,0.00016398,2]
[425828605,1781951449000,-130.81884743,0.00016438,2]
[425828601,1781951449000,-5956.93597529,0.00016406,2]
[425828600,1781951449000,-6840.81606874,0.00016406,2]
[425828603,1781951449000,-308.3724854,0.00016406,2]
[425828602,1781951449000,-1103.05026643,0.00016406,2]
[425828604,1781951449000,-369.18115257,0.00016438,2]
[425828607,1781951449000,-500.0,0.00016438,2]
[425828609,1781951449000,-500.0,0.00016438,2]
[425828606,1781951449000,-500.0,0.00016438,2]
[425828611,1781951449000,-500.0,0.00016438,2]
[425828610,1781951449000,-500.0,0.00016438,2]
[425828612,1781951449000,-500.0,0.00016438,2]
[425828614,1781951449000,-500.0,0.00016438,2]
[425828613,1781951449000,-325.5542834,0.00016438,2]
[425828615,1781951449000,-500.0,0.00016438,2]
[425828617,1781951449000,-500.0,0.00016438,2]
[425828608,1781951449000,-500.0,0.00016438,2]
[425828616,1781951449000,-500.0,0.00016438,2]
[425828630,1781951450000,-318.0,0.00017261,2]
[425828632,1781951450000,-3064.77850562,0.0001751,2]
[425828631,1781951450000,-317.0,0.00017261,2]
[425828637,1781951450000,-169.96,0.00018618,2]
[425828634,1781951450000,-1500.0,0.00017769,2]
[425828629,1781951450000,-309.0,0.00017261,2]
[425828638,1781951450000,-1613.0535,0.00018865,2]
[425828633,1781951450000,-307.64,0.000177,2]
[425828628,1781951450000,-312.0,0.00017261,2]
[425828624,1781951450000,-1011.83007847,0.00017075,2]
[425828627,1781951450000,-315.0,0.00017261,2]
[425828625,1781951450000,-396.52501354,0.0001726,2]
[425828623,1781951450000,-228.172244,0.00016982,2]
[425828622,1781951450000,-1974.95,0.00016474,2]
[425828620,1781951450000,-500.0,0.00016438,2]
[425828621,1781951450000,-500.0,0.00016438,2]
[425828619,1781951450000,-500.0,0.00016438,2]
[425828618,1781951450000,-500.0,0.00016438,2]
[425828639,1781951450000,-166.66,0.00019286,2]
[425828626,1781951450000,-102.61753907,0.00017261,2]
[425828641,1781951450000,-500.0,0.00019616,2]
[425828635,1781951450000,-1555.5,0.00018317,2]
[425828640,1781951450000,-1068.76486715,0.00019413,2]
[425828660,1781951450000,-200.0,0.00020728,2]
[425828661,1781951450000,-1852.42,0.00020829,2]
[425828662,1781951450000,-109.8689094,0.00020896,2]
[425828658,1781951450000,-181.54,0.00020663,2]
[425828657,1781951450000,-150.0,0.00020659,2]
[425828655,1781951450000,-428.42,0.00020512,2]
[425828656,1781951450000,-200.0,0.00020563,2]
[425828650,1781951450000,-164.0,0.0002,2]
[425828653,1781951450000,-17300.0,0.00020481,2]
[425828651,1781951450000,-502.0,0.0002,2]
[425828659,1781951450000,-154.17,0.00020666,2]
[425828654,1781951450000,-166.66,0.00020504,2]
[425828652,1781951450000,-166.66,0.00020098,2]
[425828642,1781951450000,-166.66,0.00019692,2]
[425828643,1781951450000,-1974.95,0.00019968,2]
[425828645,1781951450000,-360.0,0.0002,2]
[425828646,1781951450000,-230.0,0.0002,2]
[425828636,1781951450000,-169.96,0.00018618,2]
[425828644,1781951450000,-273.0,0.0002,2]
[425828647,1781951450000,-153.0,0.0002,2]
[425828649,1781951450000,-171.0,0.0002,2]
[425828648,1781951450000,-157.0,0.0002,2]
[425828672,1781952474000,-362.51896056,0.000144,2]
[425828673,1781952528000,-170.71246155,0.00014799,2]
[425828674,1781952582000,-150.0,0.00014898,2]
[425828679,1781952586000,1573.91,1.004e-05,45]
[425828677,1781952586000,1573.91,1.004e-05,5]
[425828678,1781952586000,1573.91,1.004e-05,15]
[425828675,1781952586000,569.98582917,1.004e-05,2]
[425828676,1781952586000,1003.92417083,1.004e-05,2]
[425828680,1781952587000,1573.91,1.004e-05,5]
[425828682,1781952619000,629.56,1.004e-05,5]
[425828681,1781952619000,629.56,1.004e-05,2]
[425828683,1781952620000,629.56,1.004e-05,15]
[425828685,1781952635000,629.57,1.004e-05,45]
[425828684,1781952635000,-500.0,0.00014898,2]
[425828686,1781952636000,629.57,1.004e-05,5]
[425828755,1781952638000,-219.0,0.0002,2]
[425828744,1781952638000,-17410.7910277,0.00018552,2]
[425828738,1781952638000,-433.0,0.00017252,2]
[425828739,1781952638000,-1798.1017974,0.00018552,2]
[425828742,1781952638000,-418.5750509,0.00018552,2]
[425828736,1781952638000,-5528.0,0.000167,5]
[425828730,1781952638000,-150.0,0.000165,2]
[425828732,1781952638000,-150.0,0.00016599,2]
[425828726,1781952638000,-207.61701539,0.00016438,2]
[425828720,1781952638000,-500.0,0.00016438,2]
[425828728,1781952638000,-153.0,0.000165,2]
[425828724,1781952638000,-500.0,0.00016438,2]
[425828722,1781952638000,-500.0,0.00016438,2]
[425828734,1781952638000,-151.0,0.00016599,2]
[425828714,1781952638000,-956.69327254,0.000164,2]
[425828712,1781952638000,-5528.0,0.000162,3]
[425828716,1781952638000,-1294.4349,0.000164,2]
[425828701,1781952638000,-622.15795215,0.00014898,2]
[425828708,1781952638000,-639.52641718,0.000159,2]
[425828697,1781952638000,-500.0,0.00014898,2]
[425828695,1781952638000,-500.0,0.00014898,2]
[425828705,1781952638000,-44278.0,0.000158,2]
[425828703,1781952638000,-2029.11403695,0.00015,2]
[425828710,1781952638000,-255.0,0.0001603,2]
[425828699,1781952638000,-500.0,0.00014898,2]
[425828691,1781952638000,-302.37492203,0.00014898,2]
[425828692,1781952638000,-335.97135701,0.00014898,2]
[425828693,1781952638000,-500.0,0.00014898,2]
[425828757,1781952638000,-155.0,0.0002,2]
[425828718,1781952638000,-500.0,0.00016438,2]
[425828761,1781952638000,-172.0,0.0002,2]
[425828792,1781952638000,-166.66,0.00021368,2]
[425828759,1781952638000,-163.0,0.0002,2]
[425828748,1781952638000,-231.2793641,0.00018552,2]
[425828843,1781952638000,-175.263023,0.00021757,2]
[425828841,1781952638000,-9999.99,0.00021757,2]
[425828837,1781952638000,-500.0,0.00021714,3]
[425828829,1781952638000,-219.045354,0.00021654,2]
[425828832,1781952638000,-500.0,0.00021706,2]
[425828834,1781952638000,-166.78124533,0.00021706,2]
[425828794,1781952638000,-3823.0893,0.00021457,2]
[425828803,1781952638000,-154.17,0.00021617,2]
[425828846,1781952638000,-175.263023,0.00021757,2]
[425828798,1781952638000,-1549.2676,0.00021557,2]
[425828796,1781952638000,-253.3643,0.00021557,2]
[425828800,1781952638000,-196.0,0.00021596,2]
[425828790,1781952638000,-197.41,0.00021252,2]
[425828788,1781952638000,-350.0,0.00021112,2]
[425828839,1781952638000,-23484.06,0.00021757,2]
[425828769,1781952638000,-500.0,0.00020857,2]
[425828750,1781952638000,-277.0,0.0002,2]
[425828786,1781952638000,-700.0,0.00021004,2]
[425828752,1781952638000,-365.0,0.0002,2]
[425828763,1781952638000,-166.0,0.0002,2]
[425828765,1781952638000,-500.0,0.0002,2]
[425828778,1781952638000,-365.0,0.00021,2]
[425828746,1781952638000,-256.0661769,0.00018552,2]
[425828784,1781952638000,-166.0,0.00021,2]
[425828782,1781952638000,-172.0,0.00021,2]
[425828774,1781952638000,-166.66,0.00020927,2]
[425828771,1781952638000,-401.0,0.00020899,2]
[425828767,1781952638000,-350.0,0.00020505,2]
[425828780,1781952638000,-219.0,0.00021,2]
[425828776,1781952638000,-277.0,0.00021,2]
[425828921,1781952639000,-151.0,0.000223,2]
[425828917,1781952639000,-151.0,0.000223,2]
[425828923,1781952639000,-174.61919141,0.000223,2]
[425828915,1781952639000,-151.0,0.000223,2]
[425828913,1781952639000,-151.0,0.000223,2]
[425828910,1781952639000,-200.0,0.000223,2]
[425828908,1781952639000,-175.263023,0.00022299,2]
[425828925,1781952639000,-151.0,0.000223,2]
[425828895,1781952639000,-5000.0,0.00022193,2]
[425828919,1781952639000,-578.20924308,0.000223,2]
[425828928,1781952639000,-151.0,0.000223,2]
[425828932,1781952639000,-721.12765534,0.000223,2]
[425828943,1781952639000,-151.0,0.000223,2]
[425828951,1781952639000,-500.0,0.000223,2]
[425828945,1781952639000,-151.0,0.000223,2]
[425828947,1781952639000,-151.0,0.000223,2]
[425828949,1781952639000,-500.0,0.000223,2]
[425828934,1781952639000,-500.0,0.000223,2]
[425828955,1781952639000,-152.0,0.000223,2]
[425828953,1781952639000,-151.0,0.000223,2]
[425828938,1781952639000,-175.1752968,0.000223,2]
[425828941,1781952639000,-500.0,0.000223,2]
[425828904,1781952639000,-175.263023,0.00022299,2]
[425828930,1781952639000,-151.0,0.000223,2]
[425828899,1781952639000,-266.92,0.00022275,2]
[425828872,1781952639000,-219.045354,0.00021993,2]
[425828902,1781952639000,-175.263023,0.00022299,2]
[425828859,1781952639000,-150.0,0.00021918,2]
[425828848,1781952639000,-175.263023,0.00021757,2]
[425828850,1781952639000,-175.263023,0.00021757,2]
[425828853,1781952639000,-200.0,0.0002176,2]
[425828855,1781952639000,-166.66,0.00021808,2]
[425828857,1781952639000,-350.0,0.00021914,2]
[425828861,1781952639000,-500.0,0.00021918,8]
[425828863,1781952639000,-500.0,0.00021918,8]
[425828874,1781952639000,-292.409,0.00022,10]
[425828878,1781952639000,-219.0,0.00022,2]
[425828870,1781952639000,-219.045354,0.00021993,2]
[425828906,1781952639000,-175.263023,0.00022299,2]
[425828966,1781952639000,-500.0,0.000223,2]
[425828868,1781952639000,-500.0,0.00021918,8]
[425828866,1781952639000,-500.0,0.00021918,8]
[425828876,1781952639000,-365.0,0.00022,2]
[425828882,1781952639000,-166.0,0.00022,2]
[425828879,1781952639000,-172.0,0.00022,2]
[425828884,1781952639000,-6210.54,0.00022,2]
[425828886,1781952639000,-175.263023,0.00022,2]
[425828891,1781952639000,-175.263023,0.00022,2]
[425828893,1781952639000,-175.263023,0.00022,2]
[425828888,1781952639000,-175.263023,0.00022,2]
[425828897,1781952639000,-166.66,0.00022249,30]
[425828875,1781952639000,-277.0,0.00022,2]
[425828958,1781952639000,-500.0,0.000223,2]
[425828936,1781952639000,-500.0,0.000223,2]
[425828960,1781952639000,-500.0,0.000223,2]
[425829027,1781952639000,-500.0,0.000223,2]
[425829032,1781952639000,-500.0,0.000223,2]
[425829034,1781952639000,-152.0,0.000223,2]
[425829030,1781952639000,-151.0,0.000223,2]
[425829040,1781952639000,-151.0,0.000223,2]